bitfinex-derivatives/quotes_SOLF0:USTF0_20241217
["timestamp","ask_amount","ask_price","bid_price","bid_amount"]
[1734465168313,2.4,227.85,227.77,1.5282]
[1734465168514,9.16618343,227.86,227.77,1.5282]
[1734465168719,9.16618343,227.83,227.77,1.5282]
[1734465170523,2.1947,227.81,227.77,1.5282]
[1734465173621,11.36068343,227.83,227.77,1.5282]
[1734465174223,2.1946,227.82,227.78,2.1949]
[1734465176922,2.1946,227.82,227.73,9.0632124]
[1734465177426,2.1947,227.81,227.76,2.1951]
[1734465179325,9.16618343,227.86,227.78,2.1949]
[1734465179521,2.1946,227.82,227.78,2.1949]
[1734465180523,2.1944,227.84,227.8,2.1947]
[1734465180727,9.16618343,227.9,227.74,9.16618343]
[1734465180924,9.16618343,227.9,227.77,9.16618343]
[1734465181230,2.194,227.88,227.78,3.9319]
[1734465181718,2.194,227.88,227.84,2.1943]
[1734465181922,2.1941,227.87,227.84,2.1943]
[1734465182322,2.1941,227.87,227.78,3.9319]
[1734465183827,5.36548421,227.91,227.78,3.9319]
[1734465184031,14.53166764,227.91,227.78,3.9319]
[1734465184328,14.53166764,227.91,227.81,2.1946]
[1734465184532,9.16618343,227.88,227.78,1.5319]
[1734465185326,2.1944,227.84,227.8,2.1948]
[1734465185930,11.56618343,227.88,227.78,1.5319]
[1734465186228,9.16618343,227.85,227.78,1.5319]
[1734465186428,2.1945,227.83,227.78,3.7268]
[1734465187631,9.16618343,227.85,227.77,2.195]
[1734465188237,2.1946,227.82,227.78,2.1949]
[1734465188634,9.16618343,227.85,227.74,2.4]
[1734465189237,2.1947,227.81,227.77,2.195]
[1734465194042,9.16618343,227.82,227.73,3.8775]
[1734465194334,9.16618343,227.82,227.73,1.4775]
[1734465194837,2.1948,227.8,227.73,3.6729]
[1734465195036,9.16618343,227.82,227.73,3.6729]
[1734465195641,2.195,227.78,227.73,3.6729]
[1734465196036,9.16618343,227.82,227.73,3.6729]
[1734465196037,2.195,227.77,227.73,3.6729]
[1734465196238,2.195,227.77,227.72,1.4368]
[1734465196433,2.195,227.77,227.72,3.6323]
[1734465198937,2.1953,227.75,227.7,1.477]
[1734465199645,2.1953,227.75,227.69,2.1958]
[1734465199941,5.87123893,227.71,227.67,1.76929]
[1734465200333,5.87123893,227.71,227.67,3.96519]
[1734465201144,2.4,227.77,227.67,1.76929]
[1734465201346,5.87123893,227.72,227.67,1.76929]
[1734465201540,5.87123893,227.7,227.67,1.76929]
[1734465201943,9.1740452,227.74,227.67,1.76929]
[1734465202743,9.1740452,227.74,227.67,0.28809]
[1734465203536,2.1957,227.71,227.67,0.28809]
[1734465204944,2.1957,227.71,227.67,2.196]
[1734465205948,9.1740452,227.74,227.67,2.196]
[1734465207050,9.1740452,227.77,227.66,1.4652]
[1734465207250,11.5740452,227.77,227.66,1.4652]
[1734465207647,2.1953,227.74,227.66,1.4652]
[1734465208251,11.3693452,227.74,227.66,1.4652]
[1734465208652,9.1740452,227.74,227.66,1.4652]
[1734465208953,9.1740452,227.74,227.7,2.1957]
[1734465209656,2.1953,227.75,227.7,2.1957]
[1734465210454,2.1953,227.74,227.7,2.1957]
[1734465212058,2.1953,227.74,227.69,2.1958]
[1734465213457,11.5740452,227.77,227.69,2.1958]
[1734465213658,2.1954,227.73,227.69,2.1958]
[1734465215561,2.1954,227.73,227.66,1.4652]
[1734465215761,2.1954,227.73,227.68,2.1959]
[1734465216260,11.5740452,227.77,227.66,3.6613]
[1734465216261,2.1956,227.71,227.66,3.6613]
[1734465216459,9.1740452,227.74,227.66,1.4652]
[1734465216760,2.1959,227.69,227.64,2.1962]
[1734465216959,2.1959,227.69,227.63,1.4232]
[1734465218361,2.1959,227.69,227.65,2.1961]
[1734465219663,9.1740452,227.71,227.65,2.1961]
[1734465219860,2.1959,227.68,227.65,2.1961]
[1734465222163,5.87321417,227.67,227.65,2.1961]
[1734465222760,5.87321417,227.67,227.58,2.4]
[1734465223061,5.87321417,227.61,227.57,0.36356]
[1734465223663,2.1967,227.6,227.57,0.36356]
[1734465224465,5.87321417,227.59,227.57,0.36356]
[1734465225758,5.87321417,227.59,227.57,2.56046]
[1734465226356,5.87321417,227.59,227.57,0.36356]
[1734465227869,2.1969,227.58,227.57,0.36356]
[1734465228163,2.1969,227.58,227.48,258.5868926]
[1734465228164,2.1969,227.58,227.47,1.46]
[1734465228372,5.87321417,227.52,227.49,2.1977]
[1734465228571,4.3917,227.7,227.49,5.87321417]
[1734465228872,5.87321417,227.57,227.5,2.4]
[1734465229070,5.87321417,227.57,227.54,2.1973]
[1734465229368,5.87321417,227.55,227.5,2.4]
[1734465229763,5.87321417,227.55,227.52,2.1974]
[1734465230166,5.87321417,227.55,227.47,12.53374947]
[1734465230373,5.87321417,227.55,227.52,2.1974]
[1734465230870,8.07061417,227.53,227.49,2.1977]
[1734465231067,5.87321417,227.51,227.46,2.9162]
[1734465231366,5.87321417,227.48,227.46,2.9162]
[1734465233767,5.87321417,227.48,227.41,5.87321417]
[1734465233966,5.87321417,227.42,227.38,6.77781973]
[1734465235271,5.87321417,227.42,227.39,2.1987]
[1734465236173,5.87321417,227.42,227.4,2.1986]
[1734465237073,8.07161417,227.42,227.39,2.1987]
[1734465238675,5.87321417,227.42,227.39,2.1987]
[1734465240678,8.07141417,227.44,227.4,2.1986]
[1734465241480,2.198,227.47,227.39,5.87321417]
[1734465241678,5.87321417,227.46,227.39,5.87321417]
[1734465241878,5.87321417,227.46,227.39,8.29321417]
[1734465242275,5.87321417,227.49,227.46,2.198]
[1734465244081,2.42,227.56,227.48,2.1978]
[1734465244274,5.87321417,227.51,227.48,2.1978]
[1734465245279,5.87321417,227.51,227.45,2.42]
[1734465245280,5.87321417,227.51,227.46,2.1979]
[1734465245980,8.07081417,227.51,227.46,2.1979]
[1734465248178,2.1976,227.51,227.47,2.1979]
[1734465248385,8.07081417,227.51,227.47,2.1979]
[1734465251079,2.1977,227.5,227.45,5.099]
[1734465251582,2.1977,227.5,227.45,2.901]
[1734465251782,8.07091417,227.5,227.45,2.901]
[1734465252579,8.07091417,227.5,227.46,2.198]
[1734465253180,8.07091417,227.5,227.45,8.08088649]
[1734465253181,2.1977,227.5,227.45,8.08088649]
[1734465253386,8.07071417,227.52,227.47,2.1979]
[1734465253686,5.87321417,227.52,227.47,2.1979]
[1734465254382,2.1976,227.51,227.45,13.95410066]
[1734465254584,5.87321417,227.53,227.49,2.1977]
[1734465255075,5.87321417,227.53,227.45,13.95410066]
[1734465255483,2.1975,227.52,227.48,2.1978]
[1734465255780,5.87321417,227.53,227.45,13.95410066]
[1734465257578,5.87321417,227.53,227.48,2.1978]
[1734465258090,5.2786063,227.57,227.45,2.901]
[1734465258091,5.87321417,227.49,227.45,2.901]
[1734465258382,5.87321417,227.47,227.45,2.901]
[1734465258583,5.2786063,227.57,227.45,2.901]
[1734465258584,5.87321417,227.49,227.45,5.0991]
[1734465258886,5.87321417,227.51,227.45,2.901]
[1734465259688,2.1975,227.52,227.48,2.1978]
[1734465261480,8.07061417,227.53,227.48,2.1978]
[1734465263589,5.87321417,227.53,227.46,5.87321417]
[1734465263785,5.87321417,227.53,227.45,5.301]
[1734465263786,5.87321417,227.57,227.5,5.87321417]
[1734465263990,5.87321417,227.57,227.55,2.1971]
[1734465264190,2.1967,227.6,227.55,2.1971]
[1734465264384,5.87321417,227.58,227.55,2.1971]
[1734465265090,5.87321417,227.58,227.52,5.87321417]
[1734465265788,5.87321417,227.6,227.52,5.87321417]
[1734465266289,5.87321417,227.6,227.56,2.197]
[1734465267386,5.87321417,227.6,227.57,2.1969]
[1734465268688,5.87321417,227.6,227.52,5.87321417]
[1734465268890,5.87321417,227.6,227.56,2.197]
[1734465270892,5.87321417,227.58,227.56,2.197]
[1734465271391,5.87321417,227.58,227.48,17.93469294]
[1734465271592,5.87321417,227.53,227.49,2.4]
[1734465271784,2.4,227.61,227.49,2.4]
[1734465271989,5.87321417,227.57,227.5,5.87321417]
[1734465272190,2.4,227.61,227.5,5.87321417]
[1734465272390,5.87321417,227.58,227.52,2.1974]
[1734465272585,5.87321417,227.58,227.5,5.87321417]
[1734465273189,5.87321417,227.58,227.54,2.1972]
[1734465273395,5.87321417,227.58,227.5,5.87321417]
[1734465273396,2.4,227.61,227.5,5.87321417]
[1734465273595,5.87321417,227.58,227.5,5.87321417]
[1734465274597,5.87321417,227.51,227.46,17.93469294]
[1734465274803,2.1974,227.53,227.49,2.1977]
[1734465275000,5.87321417,227.53,227.49,2.1977]
[1734465275301,5.87321417,227.54,227.46,5.87321417]
[1734465275598,5.87321417,227.54,227.47,5.87321417]
[1734465276404,8.07051417,227.54,227.5,2.1976]
[1734465276599,2.1973,227.54,227.47,5.87321417]
[1734465276900,5.87321417,227.55,227.53,2.1973]
[1734465277099,4.3918,227.69,227.5,2.4]
[1734465277298,5.87321417,227.57,227.51,2.4]
[1734465278101,5.87321417,227.57,227.55,2.1971]
[1734465280108,5.87321417,227.57,227.54,2.1972]
[1734465280607,8.07041417,227.55,227.51,2.4]
[1734465280808,5.87321417,227.53,227.45,423.94378025]
[1734465281002,5.87321417,227.53,227.48,2.4]
[1734465282803,5.87321417,227.53,227.5,2.1976]
[1734465283003,8.07061417,227.53,227.5,2.1976]
[1734465283405,5.87321417,227.53,227.49,2.1977]
[1734465283605,5.87321417,227.53,227.46,2.4]
[1734465284112,8.07041417,227.55,227.47,5.87321417]
[1734465284405,5.87321417,227.58,227.51,5.87321417]
[1734465284608,5.87321417,227.58,227.51,8.27321417]
[1734465285105,2.197,227.57,227.53,2.1973]
[1734465285306,2.197,227.57,227.51,8.27321417]
[1734465285501,2.197,227.57,227.53,2.1973]
[1734465287407,2.197,227.57,227.54,2.1972]
[1734465287702,8.07011417,227.58,227.51,2.4]
[1734465289418,5.87321417,227.58,227.53,2.1973]
[1734465289605,2.197,227.57,227.53,2.1973]
[1734465289805,5.87321417,227.56,227.53,2.1973]
[1734465291317,5.87321417,227.56,227.51,2.4]
[1734465291511,5.87321417,227.56,227.54,2.1972]
[1734465293009,2.4,227.63,227.53,5.87321417]
[1734465293316,5.87321417,227.59,227.51,2.4]
[1734465293512,5.87321417,227.59,227.52,5.87321417]
[1734465293714,4.3905,227.76,227.51,123.38906291]
[1734465293911,5.87321417,227.65,227.58,5.87321417]
[1734465294106,5.87321417,227.65,227.56,2.4]
[1734465294409,5.87321417,227.59,227.54,138.92375585]
[1734465294612,5.87321417,227.59,227.5,186.75658594]
[1734465294613,8.07011417,227.59,227.55,2.1971]
[1734465295422,5.87321417,227.57,227.55,2.1971]
[1734465295823,5.87321417,227.57,227.56,2.1971]
[1734465296118,8.47571672,227.57,227.56,2.1971]
[1734465296323,5.87321417,227.57,227.56,2.1971]
[1734465296521,8.47598976,227.57,227.56,2.1971]
[1734465297319,2.60277559,227.57,227.56,2.1971]
[1734465297821,5.87321417,227.63,227.56,5.87321417]
[1734465298020,5.87321417,227.63,227.6,2.1966]
[1734465300823,2.4,227.71,227.63,2.1963]
[1734465301025,5.87321417,227.66,227.63,2.1963]
[1734465301425,5.87321417,227.66,227.62,2.1965]
[1734465302221,192.0,227.95,227.6,5.87321417]
[1734465302422,2.4,227.77,227.62,5.87321417]
[1734465302722,2.4,227.77,227.62,8.27321417]
[1734465302723,5.87321417,227.69,227.62,8.27321417]
[1734465303117,8.06901417,227.69,227.64,2.1963]
[1734465303525,5.30747921,227.71,227.6,5.87321417]
[1734465303828,5.87321417,227.67,227.64,2.1962]
[1734465304624,5.30747921,227.71,227.6,5.87321417]
[1734465304827,5.87321417,227.69,227.65,2.1961]
[1734465305119,5.87321417,227.69,227.62,5.87321417]
[1734465305326,5.87321417,227.67,227.64,2.1962]
[1734465305518,5.30747921,227.71,227.61,2.4]
[1734465305717,5.87321417,227.69,227.62,5.87321417]
[1734465306418,2.1958,227.69,227.62,5.87321417]
[1734465306619,2.1958,227.69,227.63,2.9239]
[1734465307425,2.1958,227.69,227.65,2.1961]
[1734465307624,5.87321417,227.68,227.65,2.1961]
[1734465308626,2.196,227.67,227.63,2.9239]
[1734465308826,2.4,227.7,227.58,2.4]
[1734465309124,2.4,227.7,227.61,5.87321417]
[1734465309331,2.4,227.7,227.62,1.4445]
[1734465309332,5.87321417,227.7,227.62,1.4445]
[1734465310422,2.1958,227.69,227.65,2.1961]
[1734465310624,5.87321417,227.68,227.65,2.1961]
[1734465311933,8.06911417,227.68,227.64,2.1962]
[1734465312137,5.87321417,227.68,227.62,1.4445]
[1734465312834,5.87321417,227.68,227.65,2.1962]
[1734465314539,8.06911417,227.68,227.65,2.1962]
[1734465315235,2.1959,227.68,227.65,2.1962]
[1734465315635,8.06911417,227.68,227.65,2.1962]
[1734465316030,5.87321417,227.66,227.59,2.4]
[1734465316231,5.87321417,227.62,227.57,1.5361]
[1734465316437,5.87321417,227.62,227.56,1.5195]
[1734465316637,5.87321417,227.62,227.58,2.1968]
[1734465317432,8.06971417,227.62,227.58,2.1968]
[1734465320935,8.06991417,227.6,227.52,5.87321417]
[1734465321139,8.06991417,227.6,227.53,2.4]
[1734465321643,8.06991417,227.6,227.55,2.1971]
[1734465322238,8.06991417,227.6,227.56,2.1971]
[1734465323543,5.30747921,227.71,227.58,5.87321417]
[1734465323839,5.87321417,227.65,227.58,5.87321417]
[1734465324043,5.87321417,227.63,227.56,8.27321417]
[1734465324843,5.87321417,227.63,227.56,2.4]
[1734465325044,5.87321417,227.61,227.56,2.4]
[1734465325236,2.1968,227.6,227.55,2.1972]
[1734465325736,2.1973,227.55,227.51,2.1976]
[1734465325935,5.87321417,227.54,227.48,5.3518]
[1734465326644,5.87321417,227.54,227.48,3.725]
[1734465326849,5.87321417,227.54,227.48,2.1978]
[1734465327436,5.87321417,227.52,227.48,2.1978]
[1734465327945,2.63194408,227.51,227.48,2.1978]
[1734465328243,2.63194408,227.5,227.46,8.27321417]
[1734465328433,5.87321417,227.52,227.49,2.1978]
[1734465328635,2.63120971,227.51,227.49,2.1978]
[1734465328834,2.63120971,227.5,227.49,2.1978]
[1734465329033,2.63139832,227.5,227.49,2.1978]
[1734465329241,2.63139832,227.5,227.46,8.27321417]
[1734465329441,2.63139832,227.49,227.47,2.1979]
[1734465329651,2.63107432,227.48,227.42,17.93469294]
[1734465329843,2.63107432,227.47,227.42,2.4]
[1734465330038,2.63107432,227.46,227.41,9.70661417]
[1734465330245,5.87321417,227.49,227.43,5.87321417]
[1734465330448,2.63028347,227.48,227.43,5.87321417]
[1734465330745,5.87321417,227.53,227.47,5.87321417]
[1734465330951,2.63002678,227.52,227.47,5.87321417]
[1734465331145,2.63002678,227.51,227.47,5.87321417]
[1734465331342,2.63002678,227.5,227.49,2.1978]
[1734465331547,2.63002678,227.5,227.49,8.07101417]
[1734465332445,8.07041417,227.55,227.51,2.1976]
[1734465332754,2.62868993,227.54,227.51,2.1976]
[1734465332945,2.62868993,227.53,227.51,2.1976]
[1734465333151,2.62868993,227.52,227.51,2.1976]
[1734465334748,2.4,227.61,227.54,2.1973]
[1734465334953,25.93850986,227.73,227.55,5.87321417]
[1734465335145,5.87321417,227.62,227.55,5.87321417]
[1734465335852,5.87321417,227.6,227.55,2.1972]
[1734465336349,8.06991417,227.6,227.55,2.1972]
[1734465336652,8.06991417,227.6,227.56,2.1971]
[1734465337252,8.06991417,227.6,227.55,2.1972]
[1734465339652,8.06991417,227.6,227.56,2.1971]
[1734465339653,2.1967,227.6,227.56,2.1971]
[1734465340056,8.06991417,227.6,227.53,5.87321417]
[1734465340253,8.06991417,227.6,227.55,2.1972]
[1734465341346,5.19276948,227.63,227.6,2.1967]
[1734465341551,8.06951417,227.65,227.6,2.1967]
[1734465341747,5.87321417,227.65,227.57,8.27321417]
[1734465341953,4.3898,227.8,227.57,8.27321417]
[1734465341954,5.87321417,227.63,227.57,2.4]
[1734465342154,5.87321417,227.63,227.6,2.1967]
[1734465342453,5.87321417,227.68,227.59,5.87321417]
[1734465342856,5.87321417,227.68,227.63,2.1964]
[1734465343154,5.87321417,227.68,227.61,5.87321417]
[1734465343851,2.1955,227.74,227.68,2.1959]
[1734465344153,5.87321417,227.72,227.64,5.87321417]
[1734465344746,8.06881417,227.72,227.67,2.196]
[1734465345350,9.94858429,227.78,227.71,2.1956]
[1734465345557,5.87321417,227.76,227.71,2.1956]
[1734465345951,5.87321417,227.77,227.71,2.1956]
[1734465346461,8.06841417,227.77,227.71,2.1956]
[1734465346762,5.87321417,227.79,227.72,5.87321417]
[1734465347260,2.4,227.84,227.72,5.87321417]
[1734465347457,5.87321417,227.79,227.73,2.4]
[1734465347756,2.1943,227.85,227.75,2.1952]
[1734465348060,5.87321417,227.82,227.74,5.87321417]
[1734465348656,11.03355171,227.82,227.74,5.87321417]
[1734465349860,11.03355171,227.82,227.74,8.06851417]
[1734465350257,5.87321417,227.76,227.66,2.9581]
[1734465350461,5.87321417,227.74,227.69,2.1958]
[1734465352253,8.06861417,227.74,227.69,2.1958]
[1734465354952,5.87321417,227.74,227.66,5.3581]
[1734465355156,2.1956,227.73,227.68,2.1959]
[1734465355960,2.1957,227.71,227.67,4.596]
[1734465356564,2.1957,227.71,227.67,2.196]
[1734465356957,5.87321417,227.7,227.65,1.4189]
[1734465357157,5.87321417,227.68,227.63,2.4]
[1734465357557,5.87321417,227.7,227.63,4.5963]
[1734465357759,5.87321417,227.7,227.63,2.4]
[1734465358067,5.87321417,227.7,227.63,8.27321417]
[1734465358565,2.1959,227.68,227.64,2.1963]
[1734465359867,2.1958,227.69,227.65,2.1962]
[1734465360166,2.1958,227.69,227.63,8.27321417]
[1734465360368,2.1958,227.69,227.64,2.1963]
[1734465360968,8.06901417,227.69,227.64,2.1963]
[1734465361169,5.87321417,227.69,227.64,2.1963]
[1734465361366,5.87321417,227.67,227.62,2.1964]
[1734465361567,5.87321417,227.65,227.59,3.8132]
[1734465362062,2.4,227.74,227.59,9.68641417]
[1734465362669,5.87321417,227.66,227.59,9.68641417]
[1734465362864,2.1964,227.64,227.59,11.88321417]
[1734465363065,5.87321417,227.62,227.55,5.87321417]
[1734465363260,5.87321417,227.62,227.54,2.4]
[1734465363459,2.1969,227.59,227.54,4.5973]
[1734465363665,2.1969,227.59,227.54,2.1973]
[1734465364069,5.87321417,227.56,227.51,3.8986]
[1734465364269,5.87321417,227.56,227.5,2.1976]
[1734465365064,5.87321417,227.54,227.49,2.1978]
[1734465365468,5.87321417,227.54,227.46,7.28431417]
[1734465365469,5.87321417,227.54,227.46,1.4111]
[1734465365665,5.87321417,227.5,227.45,1.5012]
[1734465365867,5.87321417,227.48,227.41,5.87321417]
[1734465366067,2.198,227.47,227.41,5.87321417]
[1734465366672,2.1982,227.45,227.4,5.87321417]
[1734465367272,5.87321417,227.46,227.4,5.87321417]
[1734465367273,5.87321417,227.46,227.4,8.07181417]
[1734465367666,5.87321417,227.46,227.4,2.1986]
[1734465368067,2.1982,227.45,227.4,2.1986]
[1734465369368,2.1983,227.44,227.38,2.1988]
[1734465369678,11.59597035,227.48,227.37,47.74670268]
[1734465370173,9.19597035,227.45,227.37,47.74670268]
[1734465371676,2.1985,227.42,227.36,2.199]
[1734465372773,9.19597035,227.45,227.33,5.4371]
[1734465372968,2.1986,227.4,227.33,5.4371]
[1734465373567,9.19597035,227.45,227.35,2.1991]
[1734465373568,2.1986,227.41,227.35,2.1991]
[1734465373774,9.19597035,227.48,227.34,9.19597035]
[1734465374166,2.1984,227.43,227.37,2.1989]
[1734465377479,2.1985,227.42,227.37,2.1989]
[1734465377873,9.19597035,227.48,227.33,12.23307035]
[1734465378075,2.1981,227.46,227.36,9.19597035]
[1734465378275,11.59597035,227.52,227.39,9.19597035]
[1734465378571,2.1978,227.49,227.43,2.1983]
[1734465378767,11.59597035,227.52,227.43,2.1983]
[1734465378970,5.33995417,227.57,227.39,9.19597035]
[1734465379178,9.19597035,227.55,227.42,9.19597035]
[1734465379380,9.19597035,227.55,227.42,11.59597035]
[1734465379678,2.1976,227.52,227.42,11.59597035]
[1734465379874,2.1976,227.52,227.43,1.4726]
[1734465380177,2.1976,227.52,227.47,2.1979]
[1734465380573,2.1976,227.52,227.43,4.4111]
[1734465380574,9.19597035,227.55,227.46,2.1981]
[1734465380769,2.1976,227.51,227.46,2.1981]
[1734465381473,2.1971,227.57,227.51,2.1976]
[1734465381771,4.3916,227.7,227.47,2.4]
[1734465381772,9.19597035,227.6,227.47,2.4]
[1734465382175,2.197,227.58,227.52,2.1975]
[1734465382374,9.19597035,227.6,227.47,2.4]
[1734465382576,2.1976,227.51,227.46,2.1981]
[1734465382982,2.1976,227.51,227.44,2.4]
[1734465382983,2.4,227.56,227.44,2.4]
[1734465383276,9.19597035,227.62,227.49,9.19597035]
[1734465383478,9.19597035,227.62,227.5,2.4]
[1734465384075,2.1966,227.61,227.5,2.4]
[1734465384275,9.19597035,227.62,227.5,2.4]
[1734465384773,9.19597035,227.62,227.54,2.1972]
[1734465384774,2.1968,227.6,227.54,2.1972]
[1734465384980,2.1968,227.6,227.5,2.4]
[1734465385283,2.1968,227.6,227.53,2.1973]
[1734465385885,2.1968,227.59,227.53,2.1973]
[1734465386078,2.1968,227.59,227.5,2.4]
[1734465386285,2.1968,227.59,227.54,2.1972]
[1734465387083,2.197,227.58,227.52,2.1974]
[1734465387276,2.4,227.61,227.52,2.1974]
[1734465387884,2.1969,227.58,227.53,2.1974]
[1734465390082,5.87944202,227.56,227.53,2.1974]
[1734465390282,8.07634202,227.58,227.53,2.1974]
[1734465391279,8.07634202,227.58,227.51,5.87944202]
[1734465391280,5.15054755,227.62,227.51,5.87944202]
[1734465391487,5.87944202,227.6,227.55,2.1971]
[1734465392188,8.07624202,227.6,227.55,2.1971]
[1734465392390,5.87944202,227.58,227.54,2.1973]
[1734465394185,5.87944202,227.56,227.53,2.1974]
[1734465394889,5.87944202,227.56,227.52,2.1975]
[1734465395786,5.87944202,227.56,227.5,8.27944202]
[1734465395787,5.87944202,227.56,227.5,4.5977]
[1734465395981,5.87944202,227.54,227.47,5.87944202]
[1734465396185,5.87944202,227.54,227.47,8.27944202]
[1734465396383,5.87944202,227.56,227.49,2.1977]
[1734465397187,8.07674202,227.54,227.49,2.1977]
[1734465399592,2.1973,227.54,227.49,8.07714202]
[1734465399791,2.1973,227.54,227.5,2.1977]
[1734465401293,2.1973,227.54,227.49,8.07724202]
[1734465403095,2.1973,227.54,227.49,2.1978]
[1734465406189,8.07674202,227.54,227.49,2.1978]
[1734465406997,2.1975,227.53,227.49,2.1978]
[1734465407396,5.87944202,227.54,227.47,8.07734202]
[1734465407794,2.1976,227.52,227.47,8.07734202]
[1734465408603,5.87944202,227.54,227.47,8.07734202]
[1734465408803,2.1976,227.51,227.47,2.1979]
[1734465408999,5.87944202,227.5,227.46,2.4]
[1734465409304,2.1979,227.48,227.43,4.4111]
[1734465409998,2.1979,227.48,227.44,2.1982]
[1734465410203,5.87944202,227.48,227.44,2.1982]
[1734465410404,2.198,227.47,227.44,2.1982]
[1734465412298,5.87944202,227.52,227.44,5.87944202]
[1734465412801,5.87944202,227.52,227.45,2.1982]
[1734465413006,5.87944202,227.5,227.43,4.4111]
[1734465413909,2.1979,227.48,227.43,4.4111]
[1734465414604,5.87944202,227.5,227.43,4.4111]
[1734465414810,2.1978,227.49,227.45,2.1981]
[1734465415810,2.198,227.48,227.43,6.6094]
[1734465416008,5.87944202,227.5,227.43,4.4111]
[1734465416410,2.1979,227.48,227.43,6.6094]
[1734465417712,8.07734202,227.48,227.43,6.6094]
[1734465417906,8.07734202,227.48,227.43,4.4111]
[1734465418112,8.07734202,227.48,227.44,2.1983]
[1734465419915,2.1977,227.51,227.47,2.1979]
[1734465420212,25.86379351,227.61,227.48,5.87944202]
[1734465420409,8.07654202,227.56,227.52,2.1974]
[1734465420607,7.55054755,227.62,227.52,5.87944202]
[1734465420808,5.87944202,227.58,227.52,5.87944202]
[1734465421613,5.87944202,227.58,227.54,2.1973]
[1734465422805,2.1968,227.59,227.52,5.87944202]
[1734465423011,5.87944202,227.6,227.52,5.87944202]
[1734465423212,5.87944202,227.6,227.54,5.87944202]
[1734465423409,13.18,227.78,227.54,5.87944202]
[1734465423610,5.87944202,227.63,227.58,2.1969]
[1734465423809,5.87944202,227.61,227.55,2.4]
[1734465424115,5.87944202,227.61,227.57,2.197]
[1734465424310,5.87944202,227.61,227.55,2.4]
[1734465424814,5.87944202,227.61,227.57,2.197]
[1734465426111,5.87944202,227.61,227.58,2.1969]
[1734465426518,5.87944202,227.59,227.55,2.4]
[1734465426723,5.87944202,227.59,227.55,4.5972]
[1734465426913,5.87944202,227.61,227.55,2.4]
[1734465427114,8.07614202,227.61,227.56,2.1971]
[1734465427412,5.87944202,227.57,227.52,3.0924]
[1734465427817,8.07654202,227.57,227.52,5.2898]
[1734465428212,5.87944202,227.57,227.52,5.2898]
[1734465428816,2.1971,227.56,227.52,5.2898]
[1734465432419,11.21558977,227.64,227.54,5.87944202]
[1734465432618,11.21558977,227.64,227.56,5.87944202]
[1734465432813,11.21558977,227.64,227.55,2.4]
[1734465432814,5.87944202,227.58,227.52,3.0924]
[1734465433022,5.87944202,227.55,227.52,3.0924]
[1734465433519,8.07664202,227.55,227.52,2.1975]
[1734465433914,5.87944202,227.55,227.52,2.1975]
[1734465436022,5.87944202,227.55,227.5,2.1976]
[1734465436224,5.87944202,227.55,227.49,2.4]
[1734465436622,8.07664202,227.55,227.51,2.1975]
[1734465437723,5.87944202,227.53,227.5,2.1976]
[1734465438125,2.4,227.6,227.52,5.87944202]
[1734465438328,5.33614775,227.64,227.52,5.87944202]
[1734465438618,5.87944202,227.6,227.52,5.87944202]
[1734465439015,8.07614202,227.6,227.56,2.197]
[1734465439421,8.07614202,227.6,227.57,2.197]
[1734465442123,5.87944202,227.6,227.57,2.197]
[1734465456231,5.87944202,227.62,227.54,5.87944202]
[1734465456836,5.87944202,227.62,227.52,137.59782969]
[1734465457135,8.07604202,227.62,227.57,2.1969]
[1734465457635,5.87944202,227.6,227.51,2.4]
[1734465457934,5.87944202,227.56,227.5,2.4]
[1734465458335,5.87944202,227.56,227.53,2.1973]
[1734465458536,5.87944202,227.56,227.5,2.4]
[1734465458737,2.4,227.62,227.51,5.87944202]
[1734465458936,8.07634202,227.58,227.54,2.1972]
[1734465459339,2.4,227.62,227.53,5.87944202]
[1734465459637,8.07614202,227.61,227.57,2.1969]
[1734465465443,8.07614202,227.61,227.53,5.87944202]
[1734465465742,8.07614202,227.61,227.58,2.1969]
[1734465468043,2.197,227.58,227.52,2.1974]
[1734465468342,5.87944202,227.59,227.48,258.5868926]
[1734465468343,5.87944202,227.57,227.48,5.87944202]